[Event "Titled Tuesday Blitz June 27 Early 2023"]
[White "Leon Oquendo, Jorge"]
[Black "Weetik, Vjacheslav"]
[WhiteFideId "3514803"]
[BlackFideId "4153472"]
[WhiteElo "2696"]
[BlackElo "2797"]
[Result "1/2-1/2"]
[Round "11"]
[TimeControl "180+2"]
[Date "2023.06.27"]
[WhiteClock "0:00:07"]
[BlackClock "0:00:04"]
[Board "16"]

1. e4 {[%clk 0:03:00]}  c6 {[%clk 0:02:55]} 2. d3 {[%clk 0:02:44]}  d5 {[%clk 0:02:55]} 3. Qe2 {[%clk 0:02:45]}  g6 {[%clk 0:02:49]} 4. Nf3 {[%clk 0:02:44]}  Bg7 {[%clk 0:02:49]} 5. g3 {[%clk 0:02:45]}  Bg4 {[%clk 0:02:18]} 6. Bg2 {[%clk 0:02:44]}  e5 {[%clk 0:02:15]} 7. O-O {[%clk 0:02:43]}  Ne7 {[%clk 0:02:15]} 8. h3 {[%clk 0:02:35]}  Bxf3 {[%clk 0:02:14]} 9. Bxf3 {[%clk 0:02:33]}  O-O {[%clk 0:02:14]} 10. Bg2 {[%clk 0:02:32]}  Nd7 {[%clk 0:02:07]} 11. Nc3 {[%clk 0:02:30]}  dxe4 {[%clk 0:01:56]} 12. Nxe4 {[%clk 0:02:17]}  Qc7 {[%clk 0:01:54]} 13. a4 {[%clk 0:02:11]}  Rad8 {[%clk 0:01:51]} 14. a5 {[%clk 0:02:10]}  a6 {[%clk 0:01:42]} 15. Bd2 {[%clk 0:02:00]}  Rfe8 {[%clk 0:01:40]} 16. Bb4 {[%clk 0:01:42]}  c5 {[%clk 0:01:37]} 17. Bd2 {[%clk 0:01:42]}  Nf5 {[%clk 0:01:24]} 18. c3 {[%clk 0:01:40]}  h6 {[%clk 0:01:19]} 19. Rfe1 {[%clk 0:01:36]}  Ne7 {[%clk 0:01:14]} 20. Be3 {[%clk 0:01:34]}  Nd5 {[%clk 0:01:10]} 21. h4 {[%clk 0:01:28]}  Nxe3 {[%clk 0:01:05]} 22. Qxe3 {[%clk 0:01:29]}  f5 {[%clk 0:01:00]} 23. Nd2 {[%clk 0:01:29]}  Nf6 {[%clk 0:00:48]} 24. Nc4 {[%clk 0:01:25]}  e4 {[%clk 0:00:36]} 25. dxe4 {[%clk 0:01:23]}  Nxe4 {[%clk 0:00:36]} 26. Rad1 {[%clk 0:01:15]}  Rxd1 {[%clk 0:00:28]} 27. Rxd1 {[%clk 0:01:16]}  Qf7 {[%clk 0:00:26]} 28. Qd3 {[%clk 0:00:43]}  Kh7 {[%clk 0:00:19]} 29. Bxe4 {[%clk 0:00:41]}  fxe4 {[%clk 0:00:20]} 30. Qd5 {[%clk 0:00:41]}  Qf3 {[%clk 0:00:20]} 31. h5 {[%clk 0:00:35]}  gxh5 {[%clk 0:00:16]} 32. Ne3 {[%clk 0:00:35]}  Rf8 {[%clk 0:00:17]} 33. Rd2 {[%clk 0:00:34]}  h4 {[%clk 0:00:17]} 34. gxh4 {[%clk 0:00:32]}  Rf6 {[%clk 0:00:17]} 35. h5 {[%clk 0:00:32]}  Rf4 {[%clk 0:00:13]} 36. Qxc5 {[%clk 0:00:26]}  Rg4+ {[%clk 0:00:03]} 37. Nxg4 {[%clk 0:00:26]}  Qxg4+ {[%clk 0:00:04]} 38. Kf1 {[%clk 0:00:26]}  Qh3+ {[%clk 0:00:04]} 39. Kg1 {[%clk 0:00:13]}  Qg4+ {[%clk 0:00:04]} 40. Kf1 {[%clk 0:00:11]}  Qh3+ {[%clk 0:00:04]} 41. Ke2 {[%clk 0:00:06]}  Qf3+ {[%clk 0:00:04]} 42. Ke1 {[%clk 0:00:07]}  Qh1+ {[%clk 0:00:05]} 43. Ke2 {[%clk 0:00:07]}  Qf3+ {[%clk 0:00:05]} 44. Kf1 {[%clk 0:00:07]}  Qh1+ {[%clk 0:00:04]} 45. Ke2 {[%clk 0:00:07]}  Qf3+ {[%clk 0:00:04]} 1/2-1/2


[Site "https://www.chess.com"]

[Event "Titled Tuesday Blitz June 27 Early 2023"]
[White "Colas, Joshua"]
[Black "Renjith, Sravan"]
[WhiteFideId "2044447"]
[BlackFideId "4306783"]
[WhiteElo "2646"]
[BlackElo "2752"]
[Result "1-0"]
[Round "11"]
[TimeControl "180+2"]
[Date "2023.06.27"]
[WhiteClock "0:00:33"]
[BlackClock "0:00:00"]
[Board "19"]

1. Nf3 {[%clk 0:03:00]}  Nf6 {[%clk 0:02:59]} 2. c4 {[%clk 0:03:00]}  e6 {[%clk 0:02:55]} 3. g3 {[%clk 0:02:59]}  d5 {[%clk 0:02:55]} 4. d4 {[%clk 0:03:00]}  c5 {[%clk 0:02:54]} 5. Bg2 {[%clk 0:02:56]}  Nc6 {[%clk 0:02:54]} 6. O-O {[%clk 0:02:57]}  Be7 {[%clk 0:02:52]} 7. cxd5 {[%clk 0:02:56]}  exd5 {[%clk 0:02:53]} 8. Nc3 {[%clk 0:02:57]}  O-O {[%clk 0:02:51]} 9. dxc5 {[%clk 0:02:55]}  Bxc5 {[%clk 0:02:43]} 10. Bg5 {[%clk 0:02:54]}  d4 {[%clk 0:02:37]} 11. Bxf6 {[%clk 0:02:28]}  Qxf6 {[%clk 0:02:34]} 12. Ne4 {[%clk 0:02:29]}  Qe7 {[%clk 0:02:33]} 13. Nxc5 {[%clk 0:02:30]}  Qxc5 {[%clk 0:02:34]} 14. Qd2 {[%clk 0:02:29]}  Be6 {[%clk 0:02:24]} 15. Rac1 {[%clk 0:02:17]}  Qb6 {[%clk 0:02:22]} 16. b3 {[%clk 0:02:17]}  Rfd8 {[%clk 0:02:16]} 17. Rfd1 {[%clk 0:02:17]}  Rac8 {[%clk 0:02:02]} 18. Ng5 {[%clk 0:02:14]}  Bf5 {[%clk 0:02:00]} 19. Qf4 {[%clk 0:02:08]}  Bg6 {[%clk 0:01:53]} 20. Nf3 {[%clk 0:02:08]}  Re8 {[%clk 0:01:35]} 21. Rd2 {[%clk 0:02:06]}  Re4 {[%clk 0:01:27]} 22. Qd6 {[%clk 0:02:05]}  Rd8 {[%clk 0:01:22]} 23. Qc5 {[%clk 0:01:59]}  Qa6 {[%clk 0:01:06]} 24. Nh4 {[%clk 0:01:51]}  Re5 {[%clk 0:00:52]} 25. Qc4 {[%clk 0:01:52]}  Qxc4 {[%clk 0:00:43]} 26. Rxc4 {[%clk 0:01:53]}  Be4 {[%clk 0:00:29]} 27. Bxe4 {[%clk 0:01:20]}  Rxe4 {[%clk 0:00:30]} 28. Nf3 {[%clk 0:01:19]}  Kf8 {[%clk 0:00:19]} 29. e3 {[%clk 0:01:11]}  Re7 {[%clk 0:00:06]} 30. Nxd4 {[%clk 0:01:06]}  Red7 {[%clk 0:00:07]} 31. Nxc6 {[%clk 0:01:04]}  Rxd2 {[%clk 0:00:05]} 32. Nxd8 {[%clk 0:01:05]}  Rxd8 {[%clk 0:00:06]} 33. Rc7 {[%clk 0:01:05]}  Rd2 {[%clk 0:00:06]} 34. a4 {[%clk 0:00:50]}  Rb2 {[%clk 0:00:04]} 35. Rxb7 {[%clk 0:00:50]}  a5 {[%clk 0:00:05]} 36. Kg2 {[%clk 0:00:48]}  g6 {[%clk 0:00:06]} 37. h4 {[%clk 0:00:48]}  Kg7 {[%clk 0:00:06]} 38. g4 {[%clk 0:00:49]}  Kf6 {[%clk 0:00:06]} 39. Kf3 {[%clk 0:00:48]}  Ke6 {[%clk 0:00:06]} 40. Rb5 {[%clk 0:00:47]}  f6 {[%clk 0:00:06]} 41. g5 {[%clk 0:00:45]}  f5 {[%clk 0:00:04]} 42. Rxa5 {[%clk 0:00:46]}  Rxb3 {[%clk 0:00:04]} 43. Ra7 {[%clk 0:00:46]}  Ra3 {[%clk 0:00:04]} 44. Rxh7 {[%clk 0:00:35]}  Rxa4 {[%clk 0:00:05]} 45. Rg7 {[%clk 0:00:36]}  Rxh4 {[%clk 0:00:03]} 46. Rxg6+ {[%clk 0:00:36]}  Ke5 {[%clk 0:00:04]} 47. Rg8 {[%clk 0:00:36]}  Ra4 {[%clk 0:00:03]} 48. Re8+ {[%clk 0:00:35]}  Kd6 {[%clk 0:00:03]} 49. Ke2 {[%clk 0:00:33]}  Rg4 {[%clk 0:00:04]} 50. f4 {[%clk 0:00:33]}  Kd7 {[%clk 0:00:00]} 51. Re5 {[%clk 0:00:33]} 1-0


[Site "https://www.chess.com"]

[Event "Titled Tuesday Blitz June 27 Early 2023"]
[White "Postny, Evgeny"]
[Black "Iskusnyh, Sergei"]
[WhiteFideId "2804344"]
[BlackFideId "4120027"]
[WhiteElo "2746"]
[BlackElo "2632"]
[Result "0-1"]
[Round "11"]
[TimeControl "180+2"]
[Date "2023.06.27"]
[WhiteClock "0:00:00"]
[BlackClock "0:00:03"]
[Board "20"]

1. e4 {[%clk 0:02:57]}  c6 {[%clk 0:02:56]} 2. d4 {[%clk 0:02:56]}  d5 {[%clk 0:02:56]} 3. Nc3 {[%clk 0:02:55]}  dxe4 {[%clk 0:02:56]} 4. Nxe4 {[%clk 0:02:56]}  Nf6 {[%clk 0:02:56]} 5. Nxf6+ {[%clk 0:02:55]}  exf6 {[%clk 0:02:57]} 6. c3 {[%clk 0:02:54]}  Bd6 {[%clk 0:02:56]} 7. Bd3 {[%clk 0:02:54]}  Na6 {[%clk 0:02:57]} 8. Ne2 {[%clk 0:02:53]}  Nc7 {[%clk 0:02:51]} 9. Bf4 {[%clk 0:02:52]}  Bg4 {[%clk 0:02:45]} 10. Bxd6 {[%clk 0:02:51]}  Qxd6 {[%clk 0:02:43]} 11. Qd2 {[%clk 0:02:51]}  O-O {[%clk 0:02:40]} 12. O-O-O {[%clk 0:02:50]}  Bxe2 {[%clk 0:02:37]} 13. Qxe2 {[%clk 0:02:49]}  Rfe8 {[%clk 0:02:37]} 14. Qc2 {[%clk 0:02:45]}  h6 {[%clk 0:02:31]} 15. h4 {[%clk 0:02:44]}  b5 {[%clk 0:02:28]} 16. Kb1 {[%clk 0:02:40]}  a5 {[%clk 0:02:28]} 17. g4 {[%clk 0:02:39]}  Ne6 {[%clk 0:02:20]} 18. Bf5 {[%clk 0:02:34]}  Nf4 {[%clk 0:02:08]} 19. g5 {[%clk 0:02:29]}  g6 {[%clk 0:01:55]} 20. Bd3 {[%clk 0:01:49]}  fxg5 {[%clk 0:01:48]} 21. hxg5 {[%clk 0:01:50]}  hxg5 {[%clk 0:01:49]} 22. Rdg1 {[%clk 0:01:48]}  Qf6 {[%clk 0:01:48]} 23. Be4 {[%clk 0:01:37]}  Kg7 {[%clk 0:01:46]} 24. f3 {[%clk 0:01:32]}  Rac8 {[%clk 0:01:38]} 25. a3 {[%clk 0:00:59]}  Rh8 {[%clk 0:01:35]} 26. Qb3 {[%clk 0:00:56]}  a4 {[%clk 0:01:01]} 27. Qb4 {[%clk 0:00:53]}  Qe6 {[%clk 0:00:43]} 28. Qc5 {[%clk 0:00:51]}  f5 {[%clk 0:00:22]} 29. Bc2 {[%clk 0:00:43]}  Qf7 {[%clk 0:00:14]} 30. Rxh8 {[%clk 0:00:35]}  Rxh8 {[%clk 0:00:15]} 31. Re1 {[%clk 0:00:35]}  Re8 {[%clk 0:00:13]} 32. Rd1 {[%clk 0:00:19]}  Qf6 {[%clk 0:00:10]} 33. Qa7+ {[%clk 0:00:15]}  Re7 {[%clk 0:00:10]} 34. Qa8 {[%clk 0:00:14]}  g4 {[%clk 0:00:05]} 35. fxg4 {[%clk 0:00:07]}  fxg4 {[%clk 0:00:06]} 36. Rh1 {[%clk 0:00:07]}  Nh5 {[%clk 0:00:06]} 37. Qc8 {[%clk 0:00:03]}  Qf3 {[%clk 0:00:05]} 38. Rg1 {[%clk 0:00:02]}  g3 {[%clk 0:00:05]} 39. Qd8 {[%clk 0:00:02]}  Rf7 {[%clk 0:00:04]} 40. Qd6 {[%clk 0:00:02]}  Qf2 {[%clk 0:00:03]} 41. Qe5+ {[%clk 0:00:02]}  Kh6 {[%clk 0:00:04]} 42. Rh1 {[%clk 0:00:02]}  g2 {[%clk 0:00:02]} 43. Rxh5+ {[%clk 0:00:01]}  gxh5 {[%clk 0:00:03]} 44. Qe6+ {[%clk 0:00:00]}  Rf6 {[%clk 0:00:03]} 0-1


[Site "https://www.chess.com"]

[Event "Titled Tuesday Blitz June 27 Early 2023"]
[White "splendidkid"]
[Black "Mickiewicz, Piotr"]
[BlackFideId "1114891"]
[WhiteElo "2741"]
[BlackElo "2446"]
[Result "1/2-1/2"]
[Round "11"]
[TimeControl "180+2"]
[Date "2023.06.27"]
[WhiteClock "0:00:11"]
[BlackClock "0:00:09"]
[Board "21"]

1. d4 {[%clk 0:03:00]}  d5 {[%clk 0:02:58]} 2. c4 {[%clk 0:02:57]}  e6 {[%clk 0:02:59]} 3. Nf3 {[%clk 0:02:58]}  Nf6 {[%clk 0:02:59]} 4. Nc3 {[%clk 0:02:58]}  a6 {[%clk 0:02:58]} 5. cxd5 {[%clk 0:02:57]}  exd5 {[%clk 0:02:57]} 6. Bf4 {[%clk 0:02:55]}  Be6 {[%clk 0:02:56]} 7. e3 {[%clk 0:02:55]}  h6 {[%clk 0:02:56]} 8. Bd3 {[%clk 0:02:54]}  Bd6 {[%clk 0:02:55]} 9. Bg3 {[%clk 0:02:41]}  Bxg3 {[%clk 0:02:52]} 10. hxg3 {[%clk 0:02:41]}  Qd6 {[%clk 0:02:52]} 11. Qb3 {[%clk 0:02:37]}  b5 {[%clk 0:02:49]} 12. Rc1 {[%clk 0:02:26]}  c6 {[%clk 0:02:48]} 13. Qc2 {[%clk 0:02:18]}  Nbd7 {[%clk 0:02:45]} 14. Nb1 {[%clk 0:02:18]}  Rc8 {[%clk 0:02:43]} 15. Nbd2 {[%clk 0:02:18]}  O-O {[%clk 0:02:38]} 16. Nb3 {[%clk 0:02:17]}  Rfe8 {[%clk 0:02:23]} 17. O-O {[%clk 0:02:15]}  Bg4 {[%clk 0:02:18]} 18. Nh4 {[%clk 0:01:59]}  Rc7 {[%clk 0:02:07]} 19. a4 {[%clk 0:01:33]}  g5 {[%clk 0:01:37]} 20. Nf5 {[%clk 0:01:30]}  Bxf5 {[%clk 0:01:36]} 21. Bxf5 {[%clk 0:01:31]}  Nb6 {[%clk 0:01:33]} 22. axb5 {[%clk 0:01:29]}  axb5 {[%clk 0:01:32]} 23. Nc5 {[%clk 0:01:29]}  Nc4 {[%clk 0:01:09]} 24. b3 {[%clk 0:01:28]}  Nb6 {[%clk 0:00:32]} 25. Ra1 {[%clk 0:01:27]}  Nbd7 {[%clk 0:00:32]} 26. Rfc1 {[%clk 0:01:26]}  Nxc5 {[%clk 0:00:32]} 27. Qxc5 {[%clk 0:01:27]}  Qxc5 {[%clk 0:00:30]} 28. Rxc5 {[%clk 0:01:28]}  Ne4 {[%clk 0:00:19]} 29. Bxe4 {[%clk 0:01:22]}  Rxe4 {[%clk 0:00:20]} 30. Rac1 {[%clk 0:01:21]}  f5 {[%clk 0:00:10]} 31. Rxc6 {[%clk 0:01:17]}  Rxc6 {[%clk 0:00:11]} 32. Rxc6 {[%clk 0:01:18]}  f4 {[%clk 0:00:11]} 33. gxf4 {[%clk 0:01:18]}  gxf4 {[%clk 0:00:12]} 34. Rc3 {[%clk 0:01:10]}  fxe3 {[%clk 0:00:12]} 35. fxe3 {[%clk 0:01:10]}  b4 {[%clk 0:00:12]} 36. Rc8+ {[%clk 0:01:10]}  Kg7 {[%clk 0:00:12]} 37. Kf2 {[%clk 0:01:10]}  Re6 {[%clk 0:00:12]} 38. Rc7+ {[%clk 0:01:07]}  Kg8 {[%clk 0:00:10]} 39. Rc5 {[%clk 0:01:01]}  Rf6+ {[%clk 0:00:11]} 40. Ke2 {[%clk 0:01:01]}  Rg6 {[%clk 0:00:12]} 41. Rxd5 {[%clk 0:00:59]}  Rxg2+ {[%clk 0:00:11]} 42. Kd3 {[%clk 0:01:00]}  Rb2 {[%clk 0:00:12]} 43. Kc4 {[%clk 0:01:00]}  Re2 {[%clk 0:00:12]} 44. Re5 {[%clk 0:00:59]}  h5 {[%clk 0:00:13]} 45. Kxb4 {[%clk 0:00:58]}  h4 {[%clk 0:00:12]} 46. Kc3 {[%clk 0:00:58]}  h3 {[%clk 0:00:12]} 47. Kd3 {[%clk 0:00:58]}  h2 {[%clk 0:00:13]} 48. Rg5+ {[%clk 0:00:58]}  Kf7 {[%clk 0:00:12]} 49. Rh5 {[%clk 0:00:59]}  Rb2 {[%clk 0:00:12]} 50. Ke4 {[%clk 0:00:53]}  Kg6 {[%clk 0:00:13]} 51. Rh8 {[%clk 0:00:53]}  Kg5 {[%clk 0:00:13]} 52. d5 {[%clk 0:00:52]}  Kg4 {[%clk 0:00:12]} 53. d6 {[%clk 0:00:50]}  Kg3 {[%clk 0:00:12]} 54. Ke5 {[%clk 0:00:41]}  Rxb3 {[%clk 0:00:09]} 55. e4 {[%clk 0:00:37]}  Rd3 {[%clk 0:00:09]} 56. Ke6 {[%clk 0:00:37]}  Kg2 {[%clk 0:00:09]} 57. Rxh2+ {[%clk 0:00:31]}  Kxh2 {[%clk 0:00:09]} 58. e5 {[%clk 0:00:31]}  Kg3 {[%clk 0:00:09]} 59. Ke7 {[%clk 0:00:31]}  Kf4 {[%clk 0:00:10]} 60. e6 {[%clk 0:00:31]}  Ke5 {[%clk 0:00:10]} 61. d7 {[%clk 0:00:32]}  Rd6 {[%clk 0:00:10]} 62. Kf7 {[%clk 0:00:32]}  Kf5 {[%clk 0:00:09]} 63. e7 {[%clk 0:00:09]}  Rxd7 {[%clk 0:00:09]} 64. Kf8 {[%clk 0:00:10]}  Rxe7 {[%clk 0:00:09]} 65. Kxe7 {[%clk 0:00:11]} 1/2-1/2


[Site "https://www.chess.com"]

[Event "Titled Tuesday Blitz June 27 Early 2023"]
[White "Baskakov, Egor"]
[Black "Eugene, Floryan"]
[WhiteFideId "24197866"]
[BlackFideId "20694784"]
[WhiteElo "2888"]
[BlackElo "2681"]
[Result "0-1"]
[Round "11"]
[TimeControl "180+2"]
[Date "2023.06.27"]
[WhiteClock "0:00:36"]
[BlackClock "0:01:15"]
[Board "22"]

1. e4 {[%clk 0:03:00]}  c5 {[%clk 0:02:59]} 2. g3 {[%clk 0:03:01]}  Nc6 {[%clk 0:02:57]} 3. Bg2 {[%clk 0:03:02]}  g6 {[%clk 0:02:56]} 4. Ne2 {[%clk 0:03:02]}  Bg7 {[%clk 0:02:56]} 5. O-O {[%clk 0:03:02]}  e6 {[%clk 0:02:56]} 6. c3 {[%clk 0:03:01]}  Nge7 {[%clk 0:02:55]} 7. d4 {[%clk 0:03:01]}  cxd4 {[%clk 0:02:55]} 8. Nxd4 {[%clk 0:03:01]}  d5 {[%clk 0:02:55]} 9. exd5 {[%clk 0:03:00]}  Nxd4 {[%clk 0:02:51]} 10. cxd4 {[%clk 0:03:01]}  Nxd5 {[%clk 0:02:49]} 11. Nc3 {[%clk 0:03:02]}  O-O {[%clk 0:02:47]} 12. Nxd5 {[%clk 0:03:02]}  exd5 {[%clk 0:02:47]} 13. Bf4 {[%clk 0:03:02]}  Qb6 {[%clk 0:02:44]} 14. Be5 {[%clk 0:02:55]}  Qxb2 {[%clk 0:02:34]} 15. Re1 {[%clk 0:02:33]}  Be6 {[%clk 0:02:30]} 16. a4 {[%clk 0:02:31]}  Rac8 {[%clk 0:02:22]} 17. Rb1 {[%clk 0:02:29]}  Qa3 {[%clk 0:02:18]} 18. Rxb7 {[%clk 0:02:29]}  Bh6 {[%clk 0:02:07]} 19. Rxa7 {[%clk 0:02:14]}  Rc1 {[%clk 0:02:04]} 20. Qe2 {[%clk 0:02:14]}  Rfc8 {[%clk 0:02:02]} 21. Bf1 {[%clk 0:02:06]}  Rxe1 {[%clk 0:01:49]} 22. Qxe1 {[%clk 0:02:07]}  Rc1 {[%clk 0:01:48]} 23. Ra8+ {[%clk 0:02:06]}  Bf8 {[%clk 0:01:46]} 24. Rxf8+ {[%clk 0:01:14]}  Kxf8 {[%clk 0:01:44]} 25. Bd6+ {[%clk 0:01:14]}  Kg8 {[%clk 0:01:40]} 26. Bxa3 {[%clk 0:01:04]}  Rxe1 {[%clk 0:01:39]} 27. Kg2 {[%clk 0:01:04]}  Ra1 {[%clk 0:01:35]} 28. Bc5 {[%clk 0:01:05]}  Rxa4 {[%clk 0:01:34]} 29. Bb5 {[%clk 0:01:03]}  Ra2 {[%clk 0:01:33]} 30. Kf3 {[%clk 0:01:02]}  f6 {[%clk 0:01:29]} 31. h4 {[%clk 0:00:59]}  h6 {[%clk 0:01:28]} 32. Ke3 {[%clk 0:00:55]}  g5 {[%clk 0:01:27]} 33. hxg5 {[%clk 0:00:54]}  hxg5 {[%clk 0:01:28]} 34. f4 {[%clk 0:00:54]}  g4 {[%clk 0:01:28]} 35. Bd3 {[%clk 0:00:45]}  Rg2 {[%clk 0:01:25]} 36. f5 {[%clk 0:00:43]}  Rxg3+ {[%clk 0:01:24]} 37. Ke2 {[%clk 0:00:38]}  Bd7 {[%clk 0:01:19]} 38. Bd6 {[%clk 0:00:36]}  Rf3 {[%clk 0:01:15]} 0-1


[Site "https://www.chess.com"]

[Event "Titled Tuesday Blitz June 27 Early 2023"]
[White "Schnaider, Ilan"]
[Black "Molina, Roberto Junio Brito"]
[WhiteFideId "169013"]
[BlackFideId "2109450"]
[WhiteElo "2671"]
[BlackElo "2832"]
[Result "0-1"]
[Round "11"]
[TimeControl "180+2"]
[Date "2023.06.27"]
[WhiteClock "0:00:08"]
[BlackClock "0:00:14"]
[Board "23"]

1. e4 {[%clk 0:02:56]}  c6 {[%clk 0:03:00]} 2. Nc3 {[%clk 0:02:56]}  d5 {[%clk 0:03:01]} 3. Nf3 {[%clk 0:02:57]}  dxe4 {[%clk 0:03:01]} 4. Nxe4 {[%clk 0:02:57]}  Bg4 {[%clk 0:03:02]} 5. h3 {[%clk 0:02:56]}  Bxf3 {[%clk 0:03:02]} 6. Qxf3 {[%clk 0:02:57]}  Nd7 {[%clk 0:03:02]} 7. d4 {[%clk 0:02:54]}  Ndf6 {[%clk 0:03:01]} 8. c3 {[%clk 0:02:50]}  Nxe4 {[%clk 0:03:01]} 9. Qxe4 {[%clk 0:02:51]}  Nf6 {[%clk 0:03:01]} 10. Qc2 {[%clk 0:02:52]}  Qd5 {[%clk 0:03:01]} 11. Be3 {[%clk 0:02:50]}  e6 {[%clk 0:03:00]} 12. Qb3 {[%clk 0:02:21]}  Qxb3 {[%clk 0:02:59]} 13. axb3 {[%clk 0:02:22]}  a6 {[%clk 0:02:59]} 14. b4 {[%clk 0:02:22]}  Rc8 {[%clk 0:02:58]} 15. Bd3 {[%clk 0:02:20]}  Bd6 {[%clk 0:02:55]} 16. Kd2 {[%clk 0:02:20]}  Nd5 {[%clk 0:02:55]} 17. Rhe1 {[%clk 0:02:14]}  Kd7 {[%clk 0:02:53]} 18. Be4 {[%clk 0:02:09]}  Rce8 {[%clk 0:02:51]} 19. g3 {[%clk 0:02:02]}  h6 {[%clk 0:02:45]} 20. h4 {[%clk 0:01:55]}  f5 {[%clk 0:02:29]} 21. Bf3 {[%clk 0:01:53]}  Rhf8 {[%clk 0:02:19]} 22. Bh5 {[%clk 0:01:19]}  Re7 {[%clk 0:02:17]} 23. f4 {[%clk 0:01:17]}  Rg8 {[%clk 0:02:10]} 24. Bf3 {[%clk 0:01:13]}  Nxe3 {[%clk 0:02:06]} 25. Kxe3 {[%clk 0:01:01]}  g5 {[%clk 0:02:07]} 26. hxg5 {[%clk 0:01:01]}  hxg5 {[%clk 0:02:08]} 27. Rh1 {[%clk 0:00:56]}  Reg7 {[%clk 0:01:55]} 28. Rh5 {[%clk 0:00:45]}  Be7 {[%clk 0:01:45]} 29. Rah1 {[%clk 0:00:42]}  Bf6 {[%clk 0:01:42]} 30. Rh6 {[%clk 0:00:37]}  Ke7 {[%clk 0:01:41]} 31. b3 {[%clk 0:00:30]}  gxf4+ {[%clk 0:01:31]} 32. gxf4 {[%clk 0:00:29]}  Rg1 {[%clk 0:01:30]} 33. Rh7+ {[%clk 0:00:29]}  R8g7 {[%clk 0:01:28]} 34. Rxg7+ {[%clk 0:00:23]}  Rxg7 {[%clk 0:01:29]} 35. Kf2 {[%clk 0:00:22]}  Kd6 {[%clk 0:01:22]} 36. Rh8 {[%clk 0:00:17]}  Kd7 {[%clk 0:01:12]} 37. Rb8 {[%clk 0:00:16]}  Bh4+ {[%clk 0:01:12]} 38. Ke3 {[%clk 0:00:12]}  Kd6 {[%clk 0:01:11]} 39. c4 {[%clk 0:00:09]}  Kc7 {[%clk 0:01:02]} 40. Re8 {[%clk 0:00:09]}  Be7 {[%clk 0:01:02]} 41. Bh5 {[%clk 0:00:03]}  Kd7 {[%clk 0:00:58]} 42. Rb8 {[%clk 0:00:03]}  Kc7 {[%clk 0:00:58]} 43. Re8 {[%clk 0:00:03]}  Bxb4 {[%clk 0:00:55]} 44. Rxe6 {[%clk 0:00:03]}  Rg3+ {[%clk 0:00:55]} 45. Bf3 {[%clk 0:00:04]}  Rh3 {[%clk 0:00:53]} 46. Rf6 {[%clk 0:00:03]}  Rh2 {[%clk 0:00:53]} 47. Be2 {[%clk 0:00:01]}  Ba3 {[%clk 0:00:45]} 48. Rxf5 {[%clk 0:00:02]}  Bc1+ {[%clk 0:00:45]} 49. Kf3 {[%clk 0:00:02]}  Rh3+ {[%clk 0:00:44]} 50. Kg4 {[%clk 0:00:02]}  Rxb3 {[%clk 0:00:44]} 51. Rf7+ {[%clk 0:00:02]}  Kd6 {[%clk 0:00:40]} 52. c5+ {[%clk 0:00:03]}  Kd5 {[%clk 0:00:40]} 53. Rd7+ {[%clk 0:00:02]}  Ke4 {[%clk 0:00:40]} 54. Bf3+ {[%clk 0:00:02]}  Ke3 {[%clk 0:00:38]} 55. Re7+ {[%clk 0:00:02]}  Kxd4 {[%clk 0:00:37]} 56. f5 {[%clk 0:00:03]}  Kxc5 {[%clk 0:00:32]} 57. f6 {[%clk 0:00:03]}  Bb2 {[%clk 0:00:29]} 58. f7 {[%clk 0:00:03]}  Bg7 {[%clk 0:00:27]} 59. Re6 {[%clk 0:00:04]}  a5 {[%clk 0:00:24]} 60. Rg6 {[%clk 0:00:04]}  Bf8 {[%clk 0:00:24]} 61. Rg5+ {[%clk 0:00:04]}  Kd6 {[%clk 0:00:22]} 62. Rg8 {[%clk 0:00:05]}  Ke7 {[%clk 0:00:22]} 63. Rg5 {[%clk 0:00:04]}  a4 {[%clk 0:00:22]} 64. Ra5 {[%clk 0:00:04]}  a3 {[%clk 0:00:22]} 65. Ra7 {[%clk 0:00:04]}  Kf6 {[%clk 0:00:21]} 66. Kf4 {[%clk 0:00:03]}  Bc5 {[%clk 0:00:18]} 67. Ra5 {[%clk 0:00:02]}  Bd6+ {[%clk 0:00:17]} 68. Ke4 {[%clk 0:00:02]}  Kxf7 {[%clk 0:00:18]} 69. Bd1 {[%clk 0:00:02]}  Rb2 {[%clk 0:00:15]} 70. Kd4 {[%clk 0:00:01]}  Ke7 {[%clk 0:00:15]} 71. Kc3 {[%clk 0:00:01]}  Rb1 {[%clk 0:00:13]} 72. Bc2 {[%clk 0:00:01]}  Bb4+ {[%clk 0:00:11]} 73. Kc4 {[%clk 0:00:02]}  Rb2 {[%clk 0:00:11]} 74. Re5+ {[%clk 0:00:02]}  Kd6 {[%clk 0:00:11]} 75. Re2 {[%clk 0:00:02]}  a2 {[%clk 0:00:11]} 76. Re1 {[%clk 0:00:02]}  Rxc2+ {[%clk 0:00:10]} 77. Kxb4 {[%clk 0:00:03]}  Rc5 {[%clk 0:00:09]} 78. Kb3 {[%clk 0:00:03]}  Ra5 {[%clk 0:00:09]} 79. Ra1 {[%clk 0:00:03]}  b5 {[%clk 0:00:09]} 80. Kb4 {[%clk 0:00:03]}  Ra4+ {[%clk 0:00:09]} 81. Kb3 {[%clk 0:00:04]}  Kc5 {[%clk 0:00:10]} 82. Rc1+ {[%clk 0:00:04]}  Kb6 {[%clk 0:00:11]} 83. Ra1 {[%clk 0:00:05]}  c5 {[%clk 0:00:11]} 84. Kc3 {[%clk 0:00:06]}  Ra3+ {[%clk 0:00:11]} 85. Kb2 {[%clk 0:00:06]}  b4 {[%clk 0:00:12]} 86. Kc2 {[%clk 0:00:07]}  Kb5 {[%clk 0:00:12]} 87. Kb2 {[%clk 0:00:07]}  Kc4 {[%clk 0:00:13]} 88. Kc2 {[%clk 0:00:08]}  Rh3 {[%clk 0:00:11]} 89. Rxa2 {[%clk 0:00:07]}  b3+ {[%clk 0:00:11]} 90. Kb1 {[%clk 0:00:07]}  Rh1+ {[%clk 0:00:11]} 91. Kb2 {[%clk 0:00:07]}  Rh2+ {[%clk 0:00:11]} 92. Ka3 {[%clk 0:00:07]}  bxa2 {[%clk 0:00:10]} 93. Ka4 {[%clk 0:00:05]}  Rh3 {[%clk 0:00:09]} 94. Ka5 {[%clk 0:00:05]}  Rb3 {[%clk 0:00:10]} 95. Ka6 {[%clk 0:00:06]}  Kc3 {[%clk 0:00:11]} 96. Ka7 {[%clk 0:00:06]}  Kb2 {[%clk 0:00:12]} 97. Ka6 {[%clk 0:00:07]}  c4 {[%clk 0:00:12]} 98. Ka5 {[%clk 0:00:08]}  Kc2 {[%clk 0:00:13]} 99. Ka4 {[%clk 0:00:08]}  Kc1 {[%clk 0:00:14]} 0-1


[Site "https://www.chess.com"]